fUST/lending_fUST_20240126
["ID","MTS","AMOUNT","RATE_DAILY","PERIOD"]
[312795944,1706247038184,-250.0,0.00026009,2]
[312795945,1706247038193,-620.61170483,0.000264,2]
[312795946,1706247038202,-1567.2786229,0.00026515,2]
[312795947,1706247038211,-171.481972,0.00026542,2]
[312795948,1706247038221,-1589.82443976,0.00026782,2]
[312795949,1706247038230,-23663.3769689,0.00026783,2]
[312795950,1706247038240,-560.06207122,0.00026889,2]
[312795951,1706247038251,-168.87075786,0.00026889,2]
[312795952,1706247038261,-154.92253873,0.00026889,4]
[312795953,1706247038271,-620.03058524,0.0002772,2]
[312795954,1706247038280,-4524.60137643,0.00027733,2]
[312795955,1706247038290,-171.481972,0.00028235,2]
[312795956,1706247038299,-200.0,0.00028268,15]
[312795957,1706247038308,-227.416,0.000283,2]
[312795958,1706247038319,-290.6211574,0.00028383,2]
[312795959,1706247038328,-409.14905199,0.000284,2]
[312795960,1706247038338,-409.14905199,0.000284,2]
[312795961,1706247038348,-409.14905199,0.000284,2]
[312795962,1706247038357,-409.14905199,0.000284,2]
[312795963,1706247038366,-409.14905199,0.000284,2]
[312795964,1706247038376,-409.14905199,0.000284,2]
[312795965,1706247038386,-409.14905199,0.000284,2]
[312795966,1706247038395,-409.14905199,0.000284,2]
[312795967,1706247038404,-409.14905199,0.000284,2]
[312795968,1706247038413,-409.14905,0.000284,2]
[312795969,1706247038422,-227.416,0.00028471,2]
[312795970,1706247038431,-227.416,0.00028642,2]
[312795971,1706247038441,-227.416,0.00028813,2]
[312795972,1706247038450,-227.416,0.00028984,2]
[312795973,1706247038459,-11044.49,0.0002899,3]
[312795974,1706247038468,-17244.12,0.0002899,3]
[312795975,1706247038478,-22952.05569164,0.00029,2]
[312795976,1706247038487,-1932.98612217,0.00029,2]
[312795977,1706247038497,-620.00152926,0.00029106,2]
[312795978,1706247038506,-227.416,0.00029155,2]
[312795979,1706247038515,-227.416,0.00029326,2]
[312795980,1706247038525,-227.416,0.00029497,2]
[312795981,1706247038537,-227.416,0.00029668,2]
[312795982,1706247038547,-165.68592547,0.00029779,2]
[312795983,1706247038556,-227.416,0.00029839,2]
[312795984,1706247038565,-1000.0,0.00029878,2]
[312795985,1706247038574,-4990.892822,0.00029878,2]
[312795986,1706247038583,-4990.892822,0.00029878,2]
[312795987,1706247038593,-151.0,0.00029878,2]
[312795988,1706247038602,-276000.0,0.00029879,2]
[312795989,1706247038613,-4990.892822,0.00029879,2]
[312795990,1706247038622,-4990.892822,0.00029879,2]
[312795991,1706247038632,-151.0,0.00029879,2]
[312795992,1706247038641,-557.78313786,0.00029938,2]
[312795993,1706247038650,-292.6861549,0.00029939,3]
[312795994,1706247038660,-535.52033051,0.00029939,2]
[312795995,1706247038669,-3193.90222825,0.00029939,2]
[312795996,1706247038678,-154.93802479,0.00029939,2]
[312795997,1706247038688,-1827.38712364,0.00029939,2]
[312795998,1706247038697,-621.08630561,0.00029939,2]
[312795999,1706247038792,-154.93802479,0.00029939,2]
[312796000,1706247038802,-764.62995522,0.00029939,2]
[312796001,1706247038812,-154.93802479,0.00029939,2]
[312796002,1706247038821,-548.30356127,0.00029939,2]
[312796003,1706247038830,-1110.30133816,0.00029939,2]
[312796004,1706247038840,-3220.16160157,0.00029939,2]
[312796005,1706247038849,-1115.24823197,0.00029939,2]
[312796006,1706247038858,-233.5305887,0.00029939,2]
[312796007,1706247038868,-154.93802479,0.00029939,2]
[312796008,1706247038877,-1310.60489407,0.00029939,2]
[312796009,1706247038886,-194.68499698,0.00029939,2]
[312796010,1706247038895,-154.93802479,0.00029939,2]
[312796011,1706247038905,-151.0,0.00029939,2]
[312796012,1706247038914,-151.0,0.00029939,2]
[312796013,1706247038923,-151.0,0.00029939,2]
[312796014,1706247038932,-151.0,0.00029939,2]
[312796015,1706247038942,-151.0,0.00029939,2]
[312796016,1706247038951,-151.0,0.00029939,2]
[312796017,1706247038960,-151.0,0.00029939,2]
[312796018,1706247038970,-200661.74690893,0.00029939,7]
[312796019,1706247038979,-287.482269,0.00029939,2]
[312796020,1706247038988,-303.6863981,0.00029939,2]
[312796021,1706247038998,-300.0,0.00029939,2]
[312796022,1706247039007,-279.88516594,0.00029939,2]
[312796023,1706247039017,-154.92253873,0.00029939,2]
[312796024,1706247039027,-343.32585956,0.00029939,2]
[312796025,1706247039035,-151.0,0.00029939,2]
[312796026,1706247039045,-151.0,0.00029939,2]
[312796027,1706247039054,-151.0,0.00029939,2]
[312796028,1706247039063,-151.0,0.00029939,2]
[312796029,1706247039072,-212.478459,0.00029939,2]
[312796030,1706247039082,-212.478459,0.00029939,2]
[312796031,1706247039091,-212.478459,0.00029939,2]
[312796032,1706247039101,-212.478459,0.00029939,2]
[312796033,1706247039110,-212.478459,0.00029939,2]
[312796034,1706247039120,-212.478459,0.00029939,2]
[312796035,1706247039129,-212.478459,0.00029939,2]
[312796036,1706247039139,-212.478459,0.00029939,2]
[312796037,1706247039148,-613.966543,0.00029939,2]
[312796038,1706247039157,-613.966543,0.00029939,2]
[312796039,1706247039166,-613.966543,0.00029939,2]
[312796040,1706247039176,-613.966543,0.00029939,2]
[312796041,1706247039185,-613.966543,0.00029939,2]
[312796042,1706247039195,-613.966543,0.00029939,2]
[312796043,1706247039204,-613.966543,0.00029939,2]
[312796044,1706247039213,-613.966543,0.00029939,2]
[312796045,1706247039222,-263.12024719,0.00029939,2]
[312796046,1706247039232,-4990.892822,0.00029939,2]
[312796047,1706247039241,-4990.892822,0.00029939,2]
[312796048,1706247039250,-4990.892822,0.00029939,2]
[312796049,1706247039259,-4990.892822,0.00029939,2]
[312796050,1706247039269,-4990.892822,0.00029939,2]
[312796051,1706247039279,-4990.892822,0.00029939,2]
[312796052,1706247039288,-4990.892822,0.00029939,2]
[312796053,1706247039298,-4990.892822,0.00029939,2]
[312796054,1706247039307,-4990.892822,0.00029939,2]
[312796055,1706247039319,-4990.892822,0.00029939,2]
[312796056,1706247039329,-4990.892822,0.00029939,2]
[312796057,1706247039341,-4990.892822,0.00029939,2]
[312796058,1706247039351,-4990.892822,0.00029939,2]
[312796059,1706247039361,-361.46590809,0.00029939,2]
[312796060,1706247039374,-4629.42691391,0.00029939,2]
[312796061,1706247039383,-151.0,0.00029939,2]
[312796062,1706247039392,-151.0,0.00029939,2]
[312796063,1706247039401,-151.0,0.00029939,2]
[312796064,1706247039410,-151.0,0.00029939,2]
[312796065,1706247039419,-151.0,0.00029939,2]
[312796066,1706247039428,-151.0,0.00029939,2]
[312796067,1706247039438,-198.185785,0.00029939,2]
[312796068,1706247039447,-151.0,0.0002994,2]
[312796069,1706247039456,-226.96975,0.0002994,2]
[312796070,1706247039466,-151.0,0.0002994,2]
[312796071,1706247039475,-151.0,0.0002994,2]
[312796072,1706247039484,-151.0,0.0002994,2]
[312796073,1706247039494,-151.0,0.0002994,2]
[312796074,1706247039503,-212.478459,0.0002994,2]
[312796075,1706247039513,-212.478459,0.0002994,2]
[312796076,1706247039522,-212.478459,0.0002994,2]
[312796077,1706247039532,-212.478459,0.0002994,2]
[312796078,1706247039544,-613.966543,0.0002994,2]
[312796079,1706247039554,-613.966543,0.0002994,2]
[312796080,1706247039564,-613.966543,0.0002994,2]
[312796081,1706247039574,-613.966543,0.0002994,2]
[312796082,1706247039583,-4990.892822,0.0002994,2]
[312796083,1706247039592,-4990.892832,0.0002994,2]
[312796084,1706247039602,-151.0,0.00029949,2]
[312796085,1706247039612,-151.0,0.00029949,2]
[312796086,1706247039624,-151.0,0.00029949,2]
[312796087,1706247039634,-151.0,0.00029949,2]
[312796088,1706247039645,-151.0,0.00029949,2]
[312796089,1706247039654,-212.478459,0.00029949,2]
[312796090,1706247039664,-212.478459,0.00029949,2]
[312796091,1706247039674,-613.966543,0.00029949,2]
[312796092,1706247039685,-613.966543,0.00029949,2]
[312796093,1706247039695,-919.72779966,0.00029978,2]
[312796094,1706247039711,-177.14930618,0.00029978,2]
[312796095,1706247039726,-224.8636837,0.00029978,2]
[312796096,1706247039741,-208.02861,0.00029978,2]
[312796097,1706247039755,-212.478459,0.00029978,2]
[312796098,1706247039766,-212.478459,0.00029978,2]
[312796099,1706247039778,-212.478459,0.00029978,2]
[312796100,1706247039792,-212.478459,0.00029978,2]
[312796101,1706247039805,-613.966543,0.00029978,2]
[312796102,1706247039819,-613.966543,0.00029978,2]
[312796103,1706247039833,-613.966543,0.00029978,2]
[312796104,1706247039848,-613.966543,0.00029978,2]
[312796105,1706247039861,-5291.69813439,0.00029979,2]
[312796106,1706247039874,-212.478459,0.00029979,2]
[312796107,1706247039885,-212.47846271,0.00029979,2]
[312796108,1706247039897,-613.966543,0.00029979,2]
[312796109,1706247039909,-613.966538,0.00029979,2]
[312796110,1706247039921,-154.95903166,0.0002999,2]
[312796111,1706247039934,-187.05496149,0.00029998,2]
[312796112,1706247039946,-2413.04231248,0.00029998,2]
[312796113,1706247039959,-681.08899032,0.00029998,2]
[312796114,1706247039973,-1586.05076323,0.00029999,2]
[312796115,1706247039986,-500.0,0.00029999,2]
[312796116,1706247039996,-500.0,0.00029999,2]
[312796117,1706247040007,-498.83167863,0.00029999,2]
[312796118,1706247040023,-500.0,0.00029999,2]
[312796119,1706247040035,-585.10004292,0.00029999,2]
[312796120,1706247040047,-477.32926265,0.00029999,2]
[312796128,1706247041398,-904.20873701,0.00024847,2]
[312796129,1706247041411,-22.67073735,0.00029999,2]
[312796130,1706247041423,-500.0,0.00029999,2]
[312796131,1706247041433,-500.0,0.00029999,2]
[312796132,1706247041444,-500.0,0.00029999,2]
[312796133,1706247041454,-291.18491337,0.00029999,2]
[312796134,1706247041465,-500.0,0.00029999,2]
[312796135,1706247041477,-431.5340945,0.00029999,2]
[312796136,1706247041488,-500.0,0.00029999,2]
[312796137,1706247041499,-500.0,0.00029999,2]
[312796138,1706247041510,-500.0,0.00029999,2]
[312796139,1706247041521,-500.0,0.00029999,2]
[312796140,1706247041533,-500.0,0.00029999,2]
[312796141,1706247041547,-500.0,0.00029999,2]
[312796142,1706247041557,-500.0,0.00029999,2]
[312796143,1706247041569,-449.79408516,0.00029999,2]
[312796144,1706247041581,-500.0,0.00029999,2]
[312796145,1706247041593,-500.0,0.00029999,2]
[312796146,1706247041604,-500.0,0.00029999,2]
[312796147,1706247041614,-272.19934279,0.00029999,2]
[312796148,1706247041626,-500.0,0.00029999,2]
[312796149,1706247041637,-500.0,0.00029999,2]
[312796150,1706247041649,-500.0,0.00029999,2]
[312796151,1706247041659,-500.0,0.00029999,2]
[312796152,1706247041671,-500.0,0.00029999,2]
[312796153,1706247041682,-500.0,0.00029999,2]
[312796154,1706247041694,-500.0,0.00029999,2]
[312796155,1706247041705,-499.892,0.00029999,2]
[312796156,1706247041717,-500.0,0.00029999,2]
[312796157,1706247041729,-500.0,0.00029999,2]
[312796158,1706247041740,-500.0,0.00029999,2]
[312796159,1706247041751,-500.0,0.00029999,2]
[312796160,1706247041763,-500.0,0.00029999,2]
[312796161,1706247041775,-500.0,0.00029999,2]
[312796162,1706247041786,-500.0,0.00029999,2]
[312796163,1706247041796,-500.0,0.00029999,2]
[312796164,1706247041807,-500.0,0.00029999,2]
[312796165,1706247041818,-500.0,0.00029999,2]
[312796166,1706247041828,-31660.7869045,0.0003,4]
[312796266,1706247046239,-958.9279,0.0002999,3]
[312796270,1706247046292,-13411.1721,0.0002999,3]
[312796271,1706247046301,-500.0,0.00029998,2]
[312796272,1706247046311,-10827.83790711,0.0003,4]
[312796379,1706248238365,-619.76686499,0.00024336,2]
[312796381,1706248238376,-154.90705577,0.00024337,4]
[312796383,1706248238386,-261.0420914,0.00024338,2]
[312796385,1706248238395,-1855.66219554,0.00024338,2]
[312796387,1706248238405,-24900.0,0.00024342,2]
[312796389,1706248238414,-7619.05231465,0.00024653,2]
[312796404,1706248241441,-469.45799078,0.00024336,2]
[312796405,1706248241454,-434.75074623,0.00024336,2]
[312796406,1706248241464,-3290.17445905,0.00024653,2]
[312796407,1706248241474,-4726.99215817,0.00025,2]
[312796408,1706248241484,-280.324181,0.0002539,2]
[312796409,1706248241493,-250.0,0.00025723,2]
[312796410,1706248241503,-200.0,0.00027117,15]
[312796411,1706248241513,-153.40122462,0.00029051,4]
[312796412,1706248241523,-1932.98612217,0.00029161,2]
[312796413,1706248241533,-16850.26,0.00029162,3]
[312796414,1706248241543,-14041.89,0.00029162,3]
[312796415,1706248241553,-469.36747872,0.00029171,20]
[312796416,1706248241562,-21412.35990783,0.00029172,3]
[312796417,1706248241812,-28587.64009217,0.00029172,3]
[312796418,1706248241821,-153.0,0.00029178,2]
[312796419,1706248241831,-212.4949522,0.000292,2]
[312796420,1706248241841,-153.0,0.000292,2]
[312796421,1706248241851,-153.0,0.00029315,2]
[312796422,1706248241860,-250.9797865,0.00029315,2]
[312796423,1706248241869,-306.0,0.00029315,2]
[312796424,1706248241878,-199.397808,0.00029315,2]
[312796425,1706248241888,-153.0,0.00029315,2]
[312796426,1706248241898,-153.0,0.00029315,2]
[312796427,1706248241909,-329.8196987,0.00029315,2]
[312796428,1706248241921,-153.0,0.00029315,2]
[312796429,1706248241930,-199.397808,0.00029315,2]
[312796430,1706248241939,-153.0,0.00029315,2]
[312796431,1706248241949,-153.0,0.00029315,2]
[312796432,1706248241959,-153.0,0.00029315,2]
[312796433,1706248241968,-153.0,0.00029315,2]
[312796434,1706248241977,-153.0,0.00029315,2]
[312796435,1706248241989,-153.0,0.00029315,2]
[312796436,1706248241999,-153.0,0.00029315,2]
[312796437,1706248242010,-153.0,0.00029315,2]
[312796438,1706248242021,-153.0,0.00029315,2]
[312796439,1706248242032,-153.0,0.00029315,2]
[312796440,1706248242042,-199.397808,0.00029315,2]
[312796441,1706248242053,-153.0,0.00029315,2]
[312796442,1706248242062,-153.0,0.00029315,2]
[312796443,1706248242072,-325.743661,0.00029315,2]
[312796444,1706248242081,-199.397808,0.00029315,2]
[312796445,1706248242091,-153.0,0.00029315,2]
[312796446,1706248242101,-199.397808,0.00029315,2]
[312796447,1706248242110,-153.0,0.00029315,2]
[312796448,1706248242120,-153.0,0.00029315,2]
[312796449,1706248242129,-155.0680314,0.00029315,2]
[312796450,1706248242139,-153.0,0.00029315,2]
[312796451,1706248242148,-199.397808,0.00029315,2]
[312796452,1706248242157,-153.0,0.00029315,2]
[312796453,1706248242167,-404.1604627,0.00029315,2]
[312796454,1706248242176,-158.485687,0.00029315,2]
[312796455,1706248242186,-153.0,0.00029315,2]
[312796456,1706248242195,-192.3198301,0.00029315,2]
[312796457,1706248242204,-199.397808,0.00029315,2]
[312796458,1706248242214,-199.397808,0.00029315,2]
[312796459,1706248242223,-199.397808,0.00029315,2]
[312796460,1706248242233,-153.7239814,0.00029378,2]
[312796461,1706248242242,-199.2396578,0.00029378,2]
[312796462,1706248242252,-153.0,0.00029589,2]
[312796463,1706248242261,-153.0,0.00029589,2]
[312796464,1706248242271,-153.0,0.00029589,2]
[312796465,1706248242280,-153.0,0.00029589,2]
[312796466,1706248242289,-153.0,0.00029589,2]
[312796467,1706248242299,-156.2311328,0.00029589,2]
[312796468,1706248242308,-306.0,0.00029652,2]
[312796469,1706248242317,-306.0,0.00029778,2]
[312796470,1706248242327,-398.6678816,0.00029778,2]
[312796471,1706248242336,-272.97273789,0.00029998,2]
[312796472,1706248242346,-1250.31315557,0.00029998,2]
[312796473,1706248242355,-263.65602113,0.00029998,2]
[312796474,1706248242364,-167.66325036,0.00029998,2]
[312796475,1706248242374,-156.09416496,0.00029998,2]
[312796476,1706248242383,-4828.09843941,0.00029998,2]
[312796477,1706248242392,-2112.51664999,0.00029998,2]
[312796478,1706248242401,-282.82346354,0.00029998,2]
[312796479,1706248242411,-18775.28139137,0.0003,4]
[312796480,1706248242420,-195.54104758,0.0003,2]
[312796481,1706248242430,-2373.20128333,0.0003,2]
[312796482,1706248242439,-244.39344907,0.0003,4]
[312796483,1706248242448,-154.9690062,0.0003,2]
[312796484,1706248242458,-688.95190791,0.0003,4]
[312796485,1706248242467,-167.01307802,0.0003,2]
[312796486,1706248242476,-2727.19962706,0.0003,2]
[312796487,1706248242486,-6204.72878083,0.0003,2]
[312796488,1706248242495,-2195.86737815,0.0003,2]
[312796489,1706248242505,-5007.41831529,0.0003,3]
[312796490,1706248242514,-7442.40027179,0.0003,14]
[312796491,1706248242523,-12552.7748572,0.0003,2]
[312796536,1706248243439,-518.61,0.00029162,3]
[312796537,1706248243451,-1510.26,0.00029162,3]
[312796538,1706248243463,-861.211647,0.00029162,3]
[312796539,1706248243475,-1335.69975529,0.00029162,3]
[312796541,1706248246366,-282.82346354,0.00029162,3]
[312796549,1706248449993,6116.03099693,0.000125,2]
[312796550,1706248506067,535.52033051,0.000125,2]
[312796551,1706248506361,154.90705577,0.000125,2]
[312796552,1706248507002,154.90705577,0.000125,2]
[312796553,1706248507879,621.08630561,0.000125,2]
[312796554,1706248508748,1310.60489407,0.000125,2]
[312796555,1706248509221,233.5305887,0.000125,2]
[312796556,1706248510201,154.90705577,0.000125,2]
[312796557,1706248510682,343.32585956,0.000125,2]
[312796558,1706248511637,154.90705577,0.000125,2]
[312796559,1706248512316,3220.16160157,0.000125,2]
[312796560,1706248513342,1115.24823197,0.000125,2]
[312796561,1706248513370,1110.30133816,0.000125,2]
[312796562,1706248520395,231.17330005,0.000125,2]
[312796563,1706248520754,682.82514981,0.000125,2]
[312796564,1706248520995,172.02586259,0.000125,2]
[312796565,1706248523228,233.5305887,0.000125,2]
[312796567,1706248523878,621.08630561,0.000125,2]
[312796568,1706248524079,535.52033051,0.000125,2]
[312796569,1706248525646,155.78517571,0.000125,2]
[312796570,1706248528696,343.32585956,0.000125,2]
[312796571,1706248530214,227.75397513,0.000125,2]
[312796572,1706248531360,1110.30133816,0.000125,2]
[312796573,1706248534327,3220.16160157,0.000125,2]
[312796574,1706248535238,471.02550119,0.000125,2]
[312796575,1706248541888,237.4194717,0.000125,2]
[312796576,1706248542079,535.52033051,0.000125,2]
[312796577,1706248544835,682.82514981,0.000125,2]
[312796578,1706248547243,233.5305887,0.000125,2]
[312796579,1706248550396,3220.16160157,0.000125,2]
[312796580,1706248550690,343.41197626,0.000125,2]
[312796581,1706248551362,1102.00319088,0.000125,2]
[312796582,1706248560077,535.52033051,0.000125,2]
[312796583,1706248562761,682.82514981,0.000125,2]
[312796584,1706248565309,233.5305887,0.000125,2]
[312796585,1706248568330,2354.80571531,0.000125,2]
[312796586,1706248577401,154.90705577,0.000125,2]
[312796587,1706248578756,682.82514981,0.000125,2]
[312796588,1706248587240,221.75884703,0.000125,2]
[312796589,1706248587775,586.47653244,0.000125,2]
[312796590,1706248594758,682.82514981,0.000125,2]
[312796591,1706248595414,154.90705577,0.000125,2]
[312796592,1706248610766,682.82514981,0.000125,2]
[312796593,1706248615414,155.77034535,0.000125,2]
[312796594,1706248626760,682.82514981,0.000125,2]
[312796595,1706248644763,682.82514981,0.000125,2]
[312796596,1706248664762,682.82514981,0.000125,2]
[312796597,1706248684769,682.82514981,0.000125,2]
[312796598,1706248710769,403.39155997,0.000125,2]
[312796648,1706249432498,-154.8915759,0.00026319,4]
[312796651,1706249432508,-1541.45877469,0.00026319,2]
[312796679,1706249438714,-314.20342085,0.00026319,2]
[312796681,1706249438724,-619.76686499,0.0002632,2]
[312796683,1706249438733,-171.478313,0.00026331,2]
[312796685,1706249438742,-24900.0,0.0002679,2]
[312796687,1706249438752,-280.324181,0.00027047,2]
[312796689,1706249438761,-16113.77391907,0.000275,2]
[312796691,1706249438770,-16798.81242129,0.000289,2]
[312796693,1706249438779,-833.72665942,0.00029,2]
[312796695,1706249438788,-2039.37531472,0.00029,2]
[312796697,1706249438798,-620.00007647,0.00029033,2]
[312796699,1706249438806,-7777.372343,0.00029142,3]
[312796708,1706249441515,-1347.737657,0.00029142,3]
[312796709,1706249441524,-10950.14,0.00029152,3]
[312796710,1706249441534,-531.13301038,0.00029162,2]
[312796711,1706249441547,-5599.19756208,0.00029162,2]
[312796712,1706249441556,-764.62995522,0.00029162,2]
[312796713,1706249441566,-300.0,0.00029162,2]
[312796714,1706249441575,-279.88516594,0.00029162,2]
[312796715,1706249441585,-1827.38712364,0.00029162,2]
[312796716,1706249441595,-548.30356127,0.00029162,2]
[312796717,1706249441604,-3443.5937565,0.00029698,2]
[312796718,1706249441613,-2634.79432925,0.0002979,7]
[312796719,1706249441624,-155.05876857,0.00029899,2]
[312796720,1706249441634,-20466.18138559,0.000299,2]
[312796744,1706249446693,-4778.43473117,0.000299,2]
[312796745,1706249479459,300.0,0.0002,2]
[312796746,1706249479812,154.93802479,0.000125,2]
[312796747,1706249497444,300.0,0.0002,2]
[312796748,1706249498084,548.30356127,0.00015,2]
[312796749,1706249522076,548.30356127,0.00015,2]
[312796750,1706249536076,482.70668547,0.00015,2]
[312796752,1706249925394,233.5305887,0.00015,2]
[312796753,1706249925542,1110.30133816,0.00015,2]
[312796754,1706249926080,621.08630561,0.00015,2]
[312796755,1706249930131,548.30356127,0.00015,2]
[312796756,1706249938945,682.82514981,0.00015,2]
[312796757,1706249958952,627.77974426,0.00015,2]
[312796758,1706249983177,154.8915759,0.00015,2]
[312796759,1706249999183,191.98568357,0.00015,2]
[312796813,1706250639511,-1855.66219554,0.00020972,2]
[312796814,1706250639520,-1218.16985372,0.00020973,2]
[312796815,1706250639566,-3993.65994429,0.00020973,2]
[312796816,1706250639577,-619.76686499,0.00020973,2]
[312796817,1706250639587,-1827.38712364,0.00021,2]
[312796818,1706250639596,-764.62995522,0.00025,2]
[312796819,1706250639605,-14200.55540929,0.00026408,2]
[312796820,1706250639618,-4551.47340756,0.00026408,2]
[312796821,1706250639630,-6147.97118315,0.00026408,2]
[312796822,1706250639639,-3193.90222825,0.000275,2]
[312796824,1706250639648,-279.88516594,0.00028,2]
[312796826,1706250639657,-277.47874934,0.00028,2]
[312796828,1706250639670,-1915.01110016,0.0002989,3]
[312796858,1706250644326,-4081.45258001,0.0002989,3]
[312796861,1706250644384,-1607.79631983,0.0002989,3]
[312796862,1706250644393,-6336.88,0.0002989,3]
[312796863,1706250644402,-3957.13082316,0.0002989,3]
[312796898,1706250646871,-350.98489009,0.0002989,3]
[312796899,1706250646884,-867.82603526,0.0002989,3]
[312796900,1706250646928,-104.79825149,0.0002989,3]
[312796901,1706250646937,-557.78313786,0.00029899,2]
[312796902,1706250646948,-811.79310789,0.000299,2]
[312796909,1706251597047,-500.0,0.00045351,120]
[312796910,1706251597070,-216.0,0.00045351,30]
[312796911,1706251597093,-5795.68617438,0.00045351,60]
[312796912,1706251597117,-2987.36644181,0.00045351,120]
[312796913,1706251597141,-190.47755766,0.00045351,120]
[312796914,1706251597163,-534.37507151,0.00045351,120]
[312796915,1706251597185,-591.85589703,0.00045351,120]
[312796916,1706251597208,-466.0619024,0.00045351,120]
[312796917,1706251597230,-2100.82189981,0.00045351,30]
[312796918,1706251597253,-264.35352032,0.00045351,120]
[312796919,1706251597277,-151.05264758,0.00045351,30]
[312796920,1706251597300,-314.03498303,0.00045351,120]
[312796921,1706251597323,-550.0107044,0.00045351,30]
[312796922,1706251597348,-749.00188096,0.00045351,35]
[312796923,1706251597373,-504.81,0.00045351,120]
[312796924,1706251597397,-302221.94314465,0.00045351,30]
[312796925,1706251597421,-982.68122003,0.00045351,35]
[312796926,1706251597445,-180879.46695443,0.00045351,31]
[312796927,1706251600954,-500000.0,0.00045351,31]
[312796928,1706251604684,-319120.53304557,0.00045351,31]
[312796929,1706251604706,-180879.46695443,0.00045351,120]
[312796931,1706251643023,-500000.0,0.00045351,120]
[312796932,1706251682546,-400000.0,0.00045351,120]
[312797011,1706251837949,-171.478313,0.0002651,2]
[312797012,1706251837959,-155.67745124,0.00026779,2]
[312797013,1706251837969,-242.47072371,0.00026867,2]
[312797014,1706251837983,-762.66354568,0.00026867,2]
[312797015,1706251837995,-850.52792615,0.00026867,2]
[312797016,1706251838005,-3525.61357258,0.00026868,2]
[312797038,1706251841109,-1686.21622543,0.00026868,2]
[312797039,1706251841119,-766.21579224,0.000269,5]
[312797040,1706251841129,-14367.9729977,0.00027552,2]
[312797041,1706251841138,-155.0,0.0002889,2]
[312797042,1706251841148,-620.00000382,0.00028961,2]
[312797043,1706251841158,-10486.80042366,0.0002979,2]
[312797091,1706251846074,-451.25,0.0002979,2]
[312797304,1706253038853,-412.49358843,0.00022409,2]
[312797305,1706253038864,-619.76686499,0.00024996,2]
[312797307,1706253038873,-1386.24044694,0.00024997,2]
[312797309,1706253038886,-469.4217486,0.00024997,2]
[312797311,1706253038896,-130.8962514,0.00025,2]
[312797313,1706253038908,-249.1037486,0.00025,2]
[312797315,1706253038917,-3208.8208697,0.00028464,2]
[312797317,1706253038927,-269.20480479,0.0002879,2]
[312797318,1706253038936,-156.31382094,0.000297,2]
[312797319,1706253038946,-1932.98612217,0.00029779,2]
[312797320,1706253038956,-5429.08,0.0002978,3]
[312797321,1706253038965,-10352.89,0.0002978,3]
[312797322,1706253038974,-8627.41,0.0002978,3]
[312797323,1706253038983,-165.68592547,0.00029788,2]
[312797324,1706253038993,-1000.0,0.00029789,2]
[312797325,1706253039002,-764.62995522,0.0002979,2]
[312797326,1706253039011,-1827.38712364,0.0002979,2]
[312797327,1706253039020,-3193.90222825,0.0002979,2]
[312797328,1706253039029,-279.88516594,0.0002979,2]
[312797329,1706253039038,-300.0,0.0002979,2]
[312797330,1706253039048,-275188.20689211,0.0002979,2]
[312797331,1706253039056,-1332.92032322,0.00029888,2]
[312797332,1706253039065,-263.35350601,0.00029888,2]
[312797333,1706253039075,-20037.98464563,0.00029889,2]
[312797334,1706253039083,-292.6861549,0.0002989,3]
[312797335,1706253039092,-241271.89630157,0.0002989,7]
[312797336,1706253039101,-17387.29984694,0.00029899,2]
[312797377,1706253043541,-5211.82979801,0.00024996,2]
[312797378,1706253043552,-18140.33866029,0.00029899,2]
[312797380,1706253043562,-2256.7169683,0.0002999,3]
[312797478,1706254238307,-1855.66219554,0.00023997,2]
[312797480,1706254238318,-619.76686499,0.00023998,2]
[312797481,1706254238327,-470.95501386,0.00023998,2]